Cogmind - Beta 16.1 @@@ ROGUE MODE // 2026.02.23 @ 18:43:56 Player: Anting Result: Destroyed by S-10 Pest with Light Assault Rifle Performance ------------- Evolutions (0) 0 Regions Visited (4) 800 Robots Destroyed (40) 200 Value Destroyed (820) 820 Prototype IDs (37) 740 Alien Tech Used (0) 0 Bonus (300) 300 TOTAL SCORE: 2860 Bonus ------- Aligned with FarCom 300 Cogmind --------- Core Integrity 0/250 Matter 166/300 Energy 186/250 System Corruption 2% Temperature Cool (0) Movement Treading (240) Ox1 Location -9/Mines Parts ------- > --- POWER (1) -------- Ion Engine > --- PROPULSION (2) --- Light Treads Light Treads > --- UTILITY (2) ------ High-capacity Storage Unit Light Armor Plating > --- WEAPON (2) ------- Light Cannon Rocket Launcher > --- INVENTORY (20) --- Light Treads Light Treads Improved Heat Sink Disposable Heat Sink Light Armor Plating Light Armor Plating Light Armor Plating Light EM Pulse Cannon Light EM Pulse Cannon Heavy Assault Rifle Heavy Assault Rifle XL Autogun Array Light Cannon Improved Light Cannon Rocket Launcher Flail Peak State ------------ > --- POWER ------------ Improved Ion Engine > --- PROPULSION ------- Aluminum Leg Aluminum Leg > --- UTILITY ---------- High-capacity Storage Unit Light Armor Plating > --- WEAPON ----------- Flail > --- INVENTORY -------- Light Treads Light Treads Light Treads Light Treads Improved Heat Sink Disposable Heat Sink Light Armor Plating Light Armor Plating Light Armor Plating Light EM Pulse Cannon Light EM Pulse Cannon Heavy Assault Rifle XL Autogun Array Light Cannon Light Cannon Rocket Launcher Rocket Launcher [Rating: 14] Favorites ----------- Power Light Nuclear Core Engine Improved Ion Engine Power Core Light Nuclear Core Propulsion Aluminum Leg Treads Light Treads Leg Aluminum Leg Hover Unit Hover Unit Utility High-capacity Storage Unit Device Seismic Detector Storage High-capacity Storage Unit Protection Light Armor Plating Weapon Small Laser Energy Gun Small Laser Energy Cannon Light EM Pulse Cannon Ballistic Gun Assault Rifle Ballistic Cannon Light Cannon Launcher Rocket Launcher Impact Weapon Flail Special Melee Weapon Datajack Build | -11 -10 -10 -10 -9 ------- Run | Yrd Mat Min Exi Min Slots Evolved . | . . . . . Power . | . . . . . Propulsion . | . . . . . Utility . | . . . . . Weapon . | . . . . . Parts Attached 33 | 8 9 6 3 7 Power 5 | 2 1 1 . 1 Engine 4 | 2 . 1 . 1 Core 1 | . 1 . . . Reactor . | . . . . . Propulsion 8 | 2 3 1 . 2 Treads 2 | . . . . 2 Leg 5 | 2 2 1 . . Wheel . | . . . . . Hover 1 | . 1 . . . Flight . | . . . . . Utility 7 | 2 2 1 1 1 Device 1 | 1 . . . . Storage 3 | 1 2 . . . Processor . | . . . . . Hackware . | . . . . . Protection 3 | . . 1 1 1 Artifact . | . . . . . Weapon 13 | 2 3 3 2 3 Energy Gun 2 | 1 . 1 . . Energy Cannon 1 | . 1 . . . Ballistic Gun 4 | 1 2 1 . . Ballistic Cannon 2 | . . 1 . 1 Launcher 2 | . . . . 2 Special Weapon . | . . . . . Impact Weapon 1 | . . . 1 . Slashing Weapon . | . . . . . Piercing Weapon . | . . . . . Special Melee Weapon 1 | . . . 1 . Unidentified Prototypes . | . . . . . Parts Lost 7 | . 2 2 . 3 Power 3 | . 1 1 . 1 Propulsion 2 | . 1 . . 1 Utility 1 | . . . . 1 Weapon 1 | . . 1 . . Highest Loss Streak 3 | . 1 2 . 3 To Critical Strikes . | . . . . . Average Backups 16 | 4 15 19 18 15 Power . | . . . . . Propulsion 3 | 2 3 3 4 2 Utility 5 | . 5 7 5 4 Weapon 6 | 1 5 7 8 7 Tool/Special . | . . . . . Unused Backups 15 | . 3 . 2 10 Power . | . . . . . Propulsion 3 | . 1 . . 2 Utility 5 | . . . 1 4 Weapon 7 | . 2 . 1 4 Tool/Special . | . . . . . Average Slot Usage (%) 97 | . 99 99 86 96 Engine 7 | . 2 6 14 13 Core 6 | . 11 6 . . Treads 3 | . . . . 15 Leg 24 | . 27 28 28 12 Device 8 | . 14 10 . . Storage 14 | . 14 14 14 14 Protection 5 | . . 2 14 13 Energy Gun 8 | . 13 11 . . Ballistic Gun 8 | . 13 13 1 . Ballistic Cannon 4 | . . 2 1 15 Impact Weapon 2 | . . . 5 9 Peak Build Rating 14 | 7 12 12 14 14 Average Rating 11 | 4 10 11 11 13 On Entrance 8 | . 7 11 12 14 Avg Prop Armor Cover (%) . | . . . . . Naked Turns . | . . . . . Heaviest Build 65 | 13 49 65 56 56 Greatest Support 40 | 20 20 20 20 40 Greatest Overweight (x) 4 | 1 4 3 2 2 Average Overweight (x) 1 | . 1 2 2 1 Largest Inventory Capacity 20 | 8 20 20 20 20 Average Capacity 19 | 7 18 20 20 20 Most Carried 20 | 7 20 20 20 20 Average Carried 17 | 4 15 19 19 18 Final Capacity 20 | 8 20 20 20 20 Final Carried 20 | 5 20 20 20 19 Class Distribution -------------------- 68% | Mutant 31% | Scavenger-Mutant Dominant Class ---------------- Mutant | -10/Materials Scavenger-Mutant | -10/Mines Mutant | -10/Exiles Mutant | -9/Mines Resources | -11 -10 -10 -10 -9 ----------- Run | Yrd Mat Min Exi Min Matter Collected 1158 | 284 337 148 145 244 Remotely . | . . . . . Salvage Created 1141 | 75 708 168 . 190 Parts 67 | 3 43 13 . 8 Haulers Intercepted 2 | . 2 . . . Recyclers Shooed 2 | . 1 1 . . Parts Field Recycled . | . . . . . Retrieved Matter . | . . . . . Parts Self-Destructed . | . . . . . Prevented . | . . . . . Parts Restored . | . . . . . Kills | -11 -10 -10 -10 -9 ------- Run | Yrd Mat Min Exi Min Combat Hostiles Destroyed 26 | . 13 4 . 9 Melee 3 | . . . . 3 Guns 15 | . 13 2 . . Cannons 3 | . . 2 . 1 AOE 2 | . . . . 2 Classes Destroyed 11 | 2 6 1 . 2 Worker 2 | . 1 . . 1 Builder 1 | . . . . 1 Tunneler 5 | 1 1 . . 3 Hauler 2 | . 2 . . . Recycler 2 | 1 1 . . . Operator 2 | . 2 . . . Watcher 2 | . 2 . . . Swarmer 8 | . 6 . . 2 Grunt 14 | . 7 2 . 5 Sentry 2 | . . 2 . . Assembled 2 | . . . . 2 Best Kill Streak 4 | 2 4 2 . 4 Combat Bots Only 4 | . 3 2 . 4 Max Kills in Single Turn 1 | 1 1 1 . 1 Gunslinging . | . . . . . Exploded 1 | . . . . 1 Melee 1 | . . . . 1 Uniques/NPCs Destroyed . | . . . . . Combat | -11 -10 -10 -10 -9 -------- Run | Yrd Mat Min Exi Min Hostile Shots Fired 154 | . 75 33 . 46 Missed 33 | . 16 7 . 10 Hits 121 | . 59 26 . 36 Projectile 121 | . 59 26 . 36 Critical Strikes 1 | . . . . 1 Damage Taken 1430 | . 602 390 . 438 Core 259 | . 158 59 . 42 Absorbed by Shields . | . . . . . Core Remaining (%) 100 | 100 . . . . Volleys Fired 130 | 4 89 22 . 15 Largest 2 | 2 2 2 . 2 Hottest 90 | 60 60 90 . 66 Shots Fired 264 | 8 181 46 . 29 Gun 222 | 8 181 33 . . Cannon 35 | . . 13 . 22 Launcher 7 | . . . . 7 Special . | . . . . . Kinetic 152 | 4 92 34 . 22 Thermal 105 | 4 89 12 . . Explosive 7 | . . . . 7 Electromagnetic . | . . . . . Robot Hit Streak 14 | 5 14 5 . 3 Robot Miss Streak 5 | 1 5 2 . 4 Penetration Max . | . . . . . Secondary Targets 1 | . 1 . . . Max Gunslinging Chain 1 | . 1 . . . Shots Hit Robots 165 | 6 93 29 10 27 Core Hits 59 | 4 41 7 . 7 Critical Kills . | . . . . . Critical Parts Destroyed 3 | . . . . 3 Critical Strikes 6 | . . 2 . 4 Blast 3 | . . 2 . 1 Smash 3 | . . . . 3 Melee Attacks 38 | . . . 10 28 Impact 28 | . . . . 28 Slashing . | . . . . . Piercing . | . . . . . Sneak Attacks 15 | . . . 10 5 Combat Hostiles 1 | . . . . 1 Follow-up Attacks . | . . . . . Damage Inflicted 2808 | 60 980 393 . 1375 Guns 1251 | 60 958 233 . . Cannons 340 | . . 155 . 185 Explosions 394 | . . . . 394 Melee 796 | . . . . 796 Ramming 27 | . 22 5 . . Kinetic 883 | 27 367 304 . 185 Thermal 708 | 33 591 84 . . Explosive 394 | . . . . 394 Electromagnetic . | . . . . . Impact 796 | . . . . 796 Slashing . | . . . . . Piercing . | . . . . . Highest Corruption 2 | . 2 2 2 2 Average Corruption 2 | . 2 2 2 2 Corruption Purged . | . . . . . Corruption Blocked . | . . . . . Effects 86 | . 33 21 8 24 Message Errors 19 | . 10 1 3 5 Matter Fused 23 | . 7 7 3 6 Heat Flow Errors 9 | . 4 2 . 3 Energy Discharges 11 | . 1 2 2 6 Data Loss (minor) 9 | . 5 2 . 2 Data Loss (major) 2 | . 1 1 . . Misfires 10 | . 4 4 . 2 Alerts 1 | . 1 . . . Weapon Failures 2 | . . 2 . . Overload Shots . | . . . . . Overflow Damage 417 | . . 4 . 413 Projectiles 4 | . . 4 . . Explosions 29 | . . . . 29 Melee 384 | . . . . 384 Knockbacks 6 | . . . . 6 Impact 2 | . . . . 2 Kinetic 4 | . . . . 4 Secondary . | . . . . . Self-Inflicted Damage 40 | . . . . 40 Shots 1 | . . . . 1 Rammed . | . . . . . Targets Rammed 6 | . 5 1 . . Kicked 6 | . 5 1 . . Crushed . | . . . . . Highest Temperature 277 | 40 277 226 . 226 Average Temperature 57 | 25 52 70 . 65 Received Heat Transfer 609 | . 210 198 . 201 Siege Activations . | . . . . . Martial Activations . | . . . . . Shielding Activations . | . . . . . Robots Disrupted . | . . . . . Combat Hostiles . | . . . . . Robots Corrupted 5 | . . . . 5 Combat Hostiles 3 | . . . . 3 Parts Fried 6 | . . . . 6 Impact Corruptions 13 | . . . . 13 Robots Melted . | . . . . . Combat Hostiles . | . . . . . Parts Melted 2 | . 2 . . . Heat Transferred 1637 | 75 1350 212 . . Parts Sabotaged . | . . . . . Parts Stolen . | . . . . . Parts Stripped . | . . . . . Power Chain Reactions . | . . . . . Alert | -11 -10 -10 -10 -9 ------- Run | Yrd Mat Min Exi Min Maximum Alert Level . | . . . . . Low Security (%) 100 | 100 100 100 . 100 Level 1 . | . . . . . Level 2 . | . . . . . Level 3 . | . . . . . Level 4 . | . . . . . Level 5 . | . . . . . High Security . | . . . . . Max Security . | . . . . . Peak Influence 94 | 5 94 46 . 78 Initial 29 | . . 29 . . Average 21 | 1 33 5 . 16 Influence Increases 785 | 10 432 90 . 253 Destroy 0b10 Robot/C 480 | . 260 80 . 140 Destroy 0b10 Robot/NC 80 | 10 45 . . 25 Destroy Leader 88 | . 68 10 . 10 Successful Hack 40 | . 27 . . 13 Select Force Hacks 30 | . 30 . . . Destroy Structure 37 | . 2 . . 35 Lose Combat Pursuer 30 | . . . . 30 Influence Decreases 785 | 10 356 166 . 253 Entered New Map 47 | . . 47 . . Time Decay 686 | 10 346 107 . 223 Lost Part 52 | . 10 12 . 30 Squads Dispatched 3 | . 3 . . . Investigation 1 | . 1 . . . Extermination . | . . . . . Reinforcement 2 | . 2 . . . Assault . | . . . . . Garrison . | . . . . . Intercept . | . . . . . Searches Triggered . | . . . . . Construction Impeded . | . . . . . Haulers Reinforced . | . . . . . Active Scanning Responses . | . . . . . Cargo Convoy Interrupts . | . . . . . Stealth | -11 -10 -10 -10 -9 --------- Run | Yrd Mat Min Exi Min Distress Signals . | . . . . . Communications Jammed . | . . . . . Distress Signals . | . . . . . Times Spotted 44 | . 27 4 . 13 Peak Tracking Total 4 | . 3 2 . 4 Tactical Retreats 2 | . . . . 2 Traps | -11 -10 -10 -10 -9 ------- Run | Yrd Mat Min Exi Min Traps Triggered 3 | . 3 . . . Indirectly . | . . . . . Trap Hack Attempts . | . . . . . Triggered . | . . . . . Disarmed . | . . . . . Reprogrammed . | . . . . . Reused . | . . . . . Traps Extracted . | . . . . . Installed . | . . . . . Triggered . | . . . . . Machines | -11 -10 -10 -10 -9 ---------- Run | Yrd Mat Min Exi Min Machines Disabled . | . . . . . Max in Single Turn . | . . . . . Machines Repaired . | . . . . . Machines Dismantled . | . . . . . Machines Sabotaged . | . . . . . Overloaded Fab Kills . | . . . . . Hacking | -11 -10 -10 -10 -9 --------- Run | Yrd Mat Min Exi Min Machines Accessed 9 | . 6 . 2 1 Terminals 6 | . 5 . . 1 Fabricators . | . . . . . Repair Stations . | . . . . . Recycling Units 1 | . 1 . . . Scanalyzers . | . . . . . Garrison Access . | . . . . . Total Hacks 19 | . 11 . 2 6 Successful 12 | . 7 . 2 3 Failed 6 | . 4 . . 2 Catastrophic . | . . . . . Database Lockouts 1 | . . . . 1 Manual 18 | . 11 . 1 6 Terminals 16 | . 10 . . 6 Fabricators . | . . . . . Repair Stations . | . . . . . Recycling Units 1 | . 1 . . . Scanalyzers . | . . . . . Garrison Access . | . . . . . Terminal Hacks 5 | . . . 2 3 Record 1 | . . . 1 . Robot Schematic 1 | . . . . 1 Robot Analysis 1 | . . . . 1 Zone Layout 1 | . . . . 1 Proto ID Catalog 1 | . . . 1 . Fabricator Hacks . | . . . . . Repair Station Hacks . | . . . . . Recycling Unit Hacks . | . . . . . Scanalyzer . | . . . . . Garrison Access Hacks . | . . . . . Unauthorized Hacks 7 | . 7 . . . Terminals 6 | . 6 . . . Assimilate 1 | . 1 . . . Botnet 1 | . 1 . . . Operators 1 | . 1 . . . Skim 3 | . 3 . . . Fabricators . | . . . . . Repair Stations . | . . . . . Recycling Units 1 | . 1 . . . Tunnel 1 | . 1 . . . Scanalyzers . | . . . . . Garrison Access . | . . . . . Data Cores Recovered . | . . . . . Used . | . . . . . Hacking Detections 4 | . 3 . . 1 Full Trace Events . | . . . . . Feedback Events . | . . . . . Feedback Blocked . | . . . . . Robot Schematics Acquired 1 | . . . . 1 Robots Built . | . . . . . Authchips . | . . . . . Time . | . . . . . Total Robot Build Rating . | . . . . . Part Schematics Acquired . | . . . . . Parts Built . | . . . . . Authchips . | . . . . . Time . | . . . . . Total Part Build Rating . | . . . . . Part Studies Acquired . | . . . . . Parts Repaired . | . . . . . Time . | . . . . . Parts Recycled . | . . . . . Recycled Matter . | . . . . . Retrieved Matter . | . . . . . Retrieved Components . | . . . . . Parts Scanalyzed . | . . . . . Part Schematics Acquired . | . . . . . Parts Damaged . | . . . . . Bothacking | -11 -10 -10 -10 -9 ------------ Run | Yrd Mat Min Exi Min Used RIF Installer . | . . . . . Robots Hacked 4 | . . . 4 . Non-combat 3 | . . . 3 . Combat 1 | . . . 1 . Robot Hacks Applied 10 | . . . 10 . parse_system 10 | . . . 10 . Relay Couplers Released . | . . . . . Fabnet Peak Effective % . | . . . . . Robots Rewired . | . . . . . Allies Hacked . | . . . . . Hacks Repelled . | . . . . . Allies | -11 -10 -10 -10 -9 -------- Run | Yrd Mat Min Exi Min Total Allies . | . . . . . Largest Group . | . . . . . Highest-Rated Group . | . . . . . Highest-Rated Ally . | . . . . . Total Orders . | . . . . . Ally Attacks . | . . . . . Total Damage . | . . . . . Kills . | . . . . . Allies Corrupted . | . . . . . Allies Melted . | . . . . . Intel | -11 -10 -10 -10 -9 ------- Run | Yrd Mat Min Exi Min Active Infowar (turns) 3911 | 38 2727 1145 1 . Seismic 3911 | 38 2727 1145 1 . Robot Analysis Total 1 | . . . . 1 Derelict Logs Recovered 1 | . . 1 . . Drone Launches . | . . . . . Drone Recoveries . | . . . . . Exploration | -11 -10 -10 -10 -9 ------------- Run | Yrd Mat Min Exi Min Turns Passed 6661 | 88 2727 1493 876 1477 Spaces Moved 2174 | 58 797 537 328 454 Core 16 | 16 . . . . Treads 313 | . . . . 313 Legs 1845 | 42 797 537 328 141 Wheels . | . . . . . Hover . | . . . . . Flight . | . . . . . Fastest Speed 50 | 50 120 260 260 240 Average Speed 245 | 105 238 260 260 246 Slowest Speed 400 | 120 400 330 260 260 Overloaded Moves . | . . . . . Propulsion Burnouts . | . . . . . Robots Hopped . | . . . . . Potential Cave-ins . | . . . . . Cave-ins Triggered . | . . . . . Exploration Rate (%) 57 | 4 85 71 61 67 Regions Visited 4 Branch Regions 3 Pre-discovered Areas 3 | . 1 1 1 . Known Exits Taken . | . . . . . Unknown Exits Taken 4 | 1 1 1 1 . Scrap Searched 3 | . . 1 . 2 Spaces Dug 5 | . . . . 5 Terrain Destroyed 73 | . . . . 73 Melee 5 | . . . . 5 Projectile . | . . . . . AOE 68 | . . . . 68 Terrain Rammed . | . . . . . Walls Destroyed . | . . . . . Machines Disabled . | . . . . . Actions | -11 -10 -10 -10 -9 --------- Run | Yrd Mat Min Exi Min Total 3196 | 75 1446 586 349 740 Wait 748 | . 511 12 . 225 Move 2170 | 57 796 536 327 454 Hop . | . . . . . Pick Up 31 | 6 19 3 1 2 Fast Attach 17 | 5 9 2 . 1 Attach 9 | 2 1 1 2 3 Detach 1 | . . . 1 . Swap 27 | 1 7 5 3 11 Drop 19 | . 9 4 5 1 Fire 130 | 4 89 22 . 15 Melee 38 | . . . 10 28 Ram . | . . . . . Kick 6 | . 5 1 . . Crush . | . . . . . Escape Stasis . | . . . . . Rewire . | . . . . . Trap . | . . . . . Miscellaneous . | . . . . . Route ------- -11/Scrapyard -10/Materials (discovered 5 exits: [*Mat x3] / [*Min x2]) -10/Mines (discovered 3 exits: [*Mat] / *Exi / [*Sub]) -10/Exiles -9/Mines History --------- Turn | Location | Event 5 | -11/Scrapyard | Discovered new exit (range 15) 89 | -11/Scrapyard | Entered Materials 308 | -10/Materials | Build established: Mutant 406 | -10/Materials | Discovered new exit (range 16) 504 | -10/Materials | Discovered new exit (range 16) 1443 | -10/Materials | Discovered new exit (range 9) 1608 | -10/Materials | Discovered new exit (range 6) 1925 | -10/Materials | Core integrity fell below 50% 1943 | -10/Materials | Discovered new exit (range 15) 2244 | -10/Materials | Build established: Scavenger-Mutant 2816 | -10/Materials | Entered Mines 3108 | -10/Mines | Deemed a non-threat by the Exiles lab entrance 3108 | -10/Mines | Discovered new exit (range 5) 3784 | -10/Mines | Learned 2 Materials zone layouts 3792 | -10/Mines | Discovered new exit (range 8) 3826 | -10/Mines | Learned location of Storage (-8) 3831 | -10/Mines | Discovered new exit (range 7) 4023 | -10/Mines | Core integrity fell below 20% 4309 | -10/Mines | Entered Exiles 4351 | -10/Exiles | Build established: Mutant 4372 | -10/Exiles | Met 8R-AWN 4426 | -10/Exiles | Met EX-HEX 4557 | -10/Exiles | Met EX-DEC 4650 | -10/Exiles | Learned location of Zion (-7) 4696 | -10/Exiles | Met EX-BIN 4743 | -10/Exiles | Aligned with FarCom system 4746 | -10/Exiles | Given EX-Vault access code 4808 | -10/Exiles | Opened EX-Vault 4838 | -10/Exiles | Found XL Autogun Array 4886 | -10/Exiles | Warned to stay clear of 0b10 Research branches 5157 | -10/Exiles | Discovered new exit (range 14) 5185 | -10/Exiles | Left Exiles lab with XL Autogun Array 5185 | -10/Exiles | Entered Mines 5405 | -9/Mines | Excavation squad dispatched 5405 | -9/Mines | A large section of the Mines collapsed 5859 | -9/Mines | Lost 3 parts (1p1n1u) 6071 | -9/Mines | Central database locked down 6432 | -9/Mines | Found a Scrap Suit stashed away for nefarious purposes 6662 | -9/Mines | Destroyed by S-10 Pest with Light Assault Rifle Last Messages --------------- this to the hideout, the fools near Old Recycling think they can use this tech to beat 0b10 one day, and now we just have to find a way to safely deliver this to MAIN.C to get on their good side and convince them to let us into the system." 06469_ System corrupted: Heat flow error (+108). 06585_ Sneak attack on U-05 Engineer. 06585_ U-05 Engineer suffers critical hit (Smash). 06585_ Destroyed Wheel. 06585_ U-05 Engineer system corrupted by crushing effect. 06585_ U-05 Engineer destroyed. 06588_ Acquired 4 matter. 06612_ U-05 Engineer builds a Wall. 06660_ System corrupted: Energy discharge (-50). 06662_ C-30 ARC bursts open, deploying its payload. 06662_ S-10 Pest unfolds itself. Map ----- +----------------------------------------------------+ | ????????????????????# #?# | | ?????????????????#### #?# """ "" | | ?????????????????# #?# """ "" | | ?????????????????# ####?# """ "" | | ?????????????????# #????# | | ?????????????????# #????# """ "" | | ???????????####### #????# """ "" | | ???????????# #????# """ "" | | ???????????# #######????# | | ???????????# #??????????# | | ??????????## #??????????# | | ??????????#" #??????????####### | | ??????????## #???###??????????# | | ?????????### #?## #??????????# | | ?????????# ### #??????????# | | ?????????# #### #??????????# | | ?????????# ### #???????????# | | ???????### ## #????????????# | | ???????# ## ##???????????## | | ??????## u## ! #######??????? | | ?????## #??????? | | ?????# #### #### #??????? | | ?????# s #??# #??# #??????? | | ?????## s% #??# ##??# #??????? | | ??????# s #??# ##??# #??????? | | ??????#@## #??# ##?# #??????? | | ??????# ## #??## ### #??????? | | ??????# ## #???# #" #??????? | | ??????# ## #???# #"# #??????? | | ??????# ## #???## ####!#??????? | | ?????? ????####??# #??????? | | ?????? """ ??????????#!#??????? | | ?????? """ ?????????# #??????? | | ?????? """ ?????????# #??????? | | ??????# ????????# #??????? | | ???????## ????????# #??????? | | ????????## ???????# #??????? | | ?????????? ???????# #??????? | | ??????????? ##??????# #??????? | | ???????????####???????? ???????? | | ??????????????????????? ???????? | | ??????????????????????? ???????? | | ??????????????????????? ???????? | | ??????????????????????? ???????? | | ??????????????????????? ???????? | | ???????????????????????#???????? | | ???????????????????????????????? | | ???????????????????????????????? | | ???????????????????????????????? | | ???????????????????????????????? | +----------------------------------------------------+ Best States ------------- Heat Dissipation 25 Energy Generation 14 Energy Capacity 265 Matter Stores 300 Matter Capacity 300 Sight Range 16 Terrain Scan Density 10 Armor Coverage 150 Evasion (%) 55 Recoil Reduction 2 Item Schematics ----------------- None Robot Schematics ------------------ M-13 Machinist | -9/Mines | Hacked Fabricated ------------ Nothing Repaired ---------- Nothing Studied --------- None Alien Tech Used ----------------- None Achievements -------------- None Challenges ------------ None Game ------ Seed SigixRestorationMegashotty Manual? 0 Play Time 00:23:47 Cumulative 434.7 hours Start 2026.02.21 @ 17:59:36 End 2026.02.23 @ 18:43:56 Sessions 2 Manual Loads 0 Difficulty Rogue Special Mode None Game No. 282 Rogue 282 Adventurer 0 Explorer 0 Win Type - Total 29 Types 10/0/9/1/1/0/3/2/2/1 Lore% 84 Gallery% 78 Achievement% 72 Wizard Run 0 Options --------- Layout 1 ASCII 0 Keyboard 0 Movement Mouse Keybinds 0 Fullscreen 2 Font 24/Smallcaps Map View 50x35 Zoom Use 0% Tactical HUD 1 Map Filters NONE Filters NONE Steam 1 RUN: 844d8696-87f8-4458-a06d-c8f6b37a1fcd